lending/lending_fUSD_20260119
["ID","MTS","AMOUNT","RATE_DAILY","PERIOD"]
[402718007,1768833039360,-167.16084632,0.00016438,2]
[402718008,1768833039370,-500.0,0.00016438,2]
[402718009,1768833039379,-500.0,0.00016438,2]
[402718010,1768833039389,-500.0,0.00016438,2]
[402718011,1768833039399,-500.0,0.00016438,2]
[402718012,1768833039408,-500.0,0.00016438,2]
[402718013,1768833039418,-500.0,0.00016438,2]
[402718014,1768833039427,-500.0,0.00016438,2]
[402718015,1768833039437,-500.0,0.00016438,2]
[402718016,1768833039446,-500.0,0.00016438,2]
[402718017,1768833039456,-500.0,0.00016438,2]
[402718018,1768833039465,-500.0,0.00016438,2]
[402718019,1768833039475,-395.0,0.0001645,2]
[402718020,1768833039484,-215.0,0.00016482,2]
[402718021,1768833039494,-11044.93107598,0.00016484,2]
[402718022,1768833039504,-179.0,0.00016514,2]
[402718023,1768833039514,-1000.0,0.00016515,2]
[402718024,1768833039523,-184.43,0.00016625,2]
[402718025,1768833039533,-11264.54649197,0.00016684,2]
[402718026,1768833039543,-420.0,0.00016686,2]
[402718027,1768833039552,-166.33,0.00016712,2]
[402718028,1768833039562,-166.66,0.00016723,2]
[402718029,1768833039572,-262.16490418,0.00016727,2]
[402718030,1768833039581,-250.0,0.00016747,2]
[402718031,1768833039591,-11044.93107598,0.00016748,2]
[402718032,1768833039600,-1680.0,0.0001677,2]
[402718033,1768833039610,-233.73659831,0.00016775,2]
[402718034,1768833039619,-195.0,0.00016775,2]
[402718035,1768833039628,-250.0,0.00016775,2]
[402718036,1768833039638,-328.54068909,0.00016775,2]
[402718037,1768833039648,-300.0,0.00016775,2]
[402718038,1768833039657,-600.0,0.00016775,2]
[402718039,1768833039667,-250.0,0.00016775,2]
[402718040,1768833039676,-300.0,0.00016775,2]
[402718041,1768833039685,-250.0,0.00016775,2]
[402718042,1768833039694,-2500.0,0.00016775,2]
[402718043,1768833039703,-300.0,0.00016775,2]
[402718044,1768833039713,-500.0,0.00016877,2]
[402718045,1768833039723,-4345.11,0.00016912,2]
[402718046,1768833039732,-807.19864936,0.00016918,2]
[402718047,1768833039742,-595.37131296,0.00016922,2]
[402718048,1768833039753,-181.08010149,0.00016922,2]
[402718049,1768833039763,-4345.11,0.00016956,2]
[402718050,1768833039773,-11264.54649197,0.00016988,2]
[402718051,1768833039783,-250.0,0.00017,2]
[402718052,1768833039794,-19782.22610136,0.00017,2]
[402718053,1768833039805,-4345.11,0.00017,2]
[402718054,1768833039817,-11044.93107598,0.00017012,2]
[402718055,1768833039827,-205.43779206,0.00017018,2]
[402718056,1768833039837,-4345.11,0.00017045,2]
[402718057,1768833039847,-4345.11,0.00017089,2]
[402718058,1768833039861,-1000.0,0.00017112,2]
[402718059,1768833039871,-262.16490418,0.00017118,2]
[402718060,1768833039881,-4345.11,0.00017134,2]
[402718061,1768833039892,-1000.0,0.00017138,2]
[402718062,1768833039903,-1002.10968086,0.00017138,2]
[402718063,1768833039913,-168.0,0.0001715,2]
[402718064,1768833039924,-174.55685692,0.00017177,2]
[402718065,1768833039935,-235.2475728,0.00017177,2]
[402718066,1768833039944,-500.0,0.00017177,2]
[402718067,1768833039953,-345.20820261,0.00017177,2]
[402718068,1768833039962,-4345.11,0.00017178,2]
[402718069,1768833039971,-4345.11,0.00017223,2]
[402718070,1768833039981,-187.17,0.00017241,7]
[402718071,1768833039991,-1000.0,0.0001726,2]
[402718072,1768833040001,-4345.11,0.00017267,2]
[402718073,1768833040011,-11044.93107598,0.00017276,2]
[402718074,1768833040020,-11264.54649197,0.00017292,2]
[402718075,1768833040029,-8337.3040799,0.00017294,2]
[402718076,1768833040039,-400.0,0.000173,6]
[402718077,1768833040048,-4345.11,0.00017312,2]
[402718078,1768833040058,-168.0,0.00017312,2]
[402718079,1768833040069,-4345.11,0.00017356,2]
[402718080,1768833040079,-600.0,0.000174,6]
[402718081,1768833040089,-4345.11,0.00017401,2]
[402718082,1768833040099,-4345.11,0.00017445,2]
[402718083,1768833040109,-617.40005154,0.0001747,2]
[402718084,1768833040119,-168.15828133,0.0001747,2]
[402718085,1768833040128,-4345.11,0.0001749,2]
[402718086,1768833040138,-2000.0,0.000175,2]
[402718087,1768833040147,-800.0,0.000175,6]
[402718088,1768833040157,-262.16490418,0.00017509,2]
[402718089,1768833040167,-424.77,0.00017528,2]
[402718090,1768833040177,-1000.0,0.00017534,2]
[402718091,1768833040187,-4345.11,0.00017534,2]
[402718092,1768833040197,-11044.93107598,0.0001754,2]
[402718093,1768833040206,-168.0,0.00017546,2]
[402718094,1768833040216,-4345.11,0.00017579,2]
[402718095,1768833040225,-11264.54649197,0.00017596,2]
[402718096,1768833040235,-1000.0,0.000176,6]
[402718097,1768833040245,-4345.11,0.00017623,2]
[402718098,1768833040255,-1809.93197595,0.0001764,2]
[402718099,1768833040265,-166.66,0.00017643,2]
[402718100,1768833040274,-4345.11,0.00017668,2]
[402718101,1768833040282,-2940.136,0.0001768,2]
[402718102,1768833040292,-270.705,0.0001768,2]
[402718103,1768833040302,-150.0,0.00017698,2]
[402718104,1768833040311,-150.0,0.00017698,2]
[402718105,1768833040320,-150.0,0.00017698,2]
[402718106,1768833040330,-1000.0,0.000177,2]
[402718107,1768833040340,-200.0,0.000177,6]
[402718108,1768833040350,-1000.0,0.00017709,2]
[402718109,1768833040359,-4345.11,0.00017712,2]
[402718110,1768833040369,-500.0,0.00017725,2]
[402718111,1768833040379,-500.0,0.00017725,2]
[402718112,1768833040388,-150.0,0.00017725,2]
[402718113,1768833040398,-483.0,0.00017725,2]
[402718114,1768833040407,-4444.0,0.00017743,2]
[402718115,1768833040417,-1000.0,0.00017745,2]
[402718116,1768833040426,-150.0,0.00017753,2]
[402718117,1768833040436,-150.0,0.00017753,2]
[402718118,1768833040446,-150.0,0.00017753,2]
[402718119,1768833040456,-1000.0,0.00017753,2]
[402718120,1768833040465,-4345.11,0.00017757,2]
[402718121,1768833040475,-1000.0,0.00017766,2]
[402718122,1768833040484,-1000.0,0.00017768,2]
[402718123,1768833040494,-500.0,0.0001778,2]
[402718124,1768833040503,-500.0,0.0001778,2]
[402718125,1768833040513,-150.0,0.0001778,2]
[402718126,1768833040523,-483.0,0.0001778,2]
[402718127,1768833040532,-2124.0,0.00017789,2]
[402718128,1768833040542,-1000.0,0.00017793,2]
[402718129,1768833040551,-3473.0,0.000178,2]
[402718130,1768833040561,-200.0,0.000178,6]
[402718131,1768833040571,-200.0,0.00017808,2]
[402718132,1768833040580,-235.75825089,0.00017808,2]
[402718133,1768833040590,-200.0,0.00017808,2]
[402718134,1768833040599,-150.0,0.00017808,2]
[402718135,1768833040609,-1000.0,0.00017808,2]
[402718136,1768833040618,-1000.0,0.00017819,2]
[402718137,1768833040628,-907.49422,0.0001782,2]
[402718138,1768833040638,-907.49423,0.0001782,2]
[402718139,1768833040647,-1000.0,0.00017825,2]
[402718140,1768833040657,-1000.0,0.0001783,2]
[402718141,1768833040667,-500.0,0.00017835,2]
[402718142,1768833040676,-500.0,0.00017835,2]
[402718143,1768833040686,-150.0,0.00017835,2]
[402718144,1768833040696,-483.0,0.00017835,2]
[402718145,1768833040706,-624.9530238,0.00017845,2]
[402718146,1768833040715,-200.0,0.00017856,2]
[402718148,1768833040724,-150.0,0.00017863,2]
[402718149,1768833040733,-1000.0,0.00017867,2]
[402718151,1768833040743,-1000.0,0.0001787,2]
[402718152,1768833040752,-2186.75246408,0.00017889,2]
[402718153,1768833040761,-500.0,0.00017889,2]
[402718154,1768833040771,-500.0,0.00017889,2]
[402718155,1768833040781,-150.0,0.00017889,2]
[402718156,1768833040791,-483.0,0.00017889,2]
[402718157,1768833040801,-507.55985946,0.00017899,2]
[402718158,1768833040811,-500.0,0.00017899,2]
[402718159,1768833040820,-412.90466326,0.000179,2]
[402718160,1768833040830,-696.18780773,0.000179,2]
[402718161,1768833040839,-696.18780762,0.000179,2]
[402718162,1768833040849,-200.0,0.000179,6]
[402718163,1768833040860,-696.18780762,0.000179,2]
[402718164,1768833040870,-696.18780762,0.000179,2]
[402718165,1768833040880,-696.18780762,0.000179,2]
[402718166,1768833040891,-696.18780762,0.000179,2]
[402718167,1768833040901,-696.18780762,0.000179,2]
[402718168,1768833040910,-696.18780762,0.000179,2]
[402718169,1768833040921,-696.18780762,0.000179,2]
[402718170,1768833041206,-11264.54649197,0.000179,2]
[402718171,1768833041218,-696.18780762,0.000179,2]
[402718172,1768833041227,-696.18780762,0.000179,2]
[402718173,1768833041237,-696.18780762,0.000179,2]
[402718174,1768833041247,-696.18780762,0.000179,2]
[402718176,1768833041256,-696.18780762,0.000179,2]
[402718177,1768833041266,-696.18780762,0.000179,2]
[402718178,1768833041275,-696.18780762,0.000179,2]
[402718179,1768833041284,-696.18780762,0.000179,2]
[402718180,1768833041293,-696.18780762,0.000179,2]
[402718181,1768833041303,-696.18780762,0.000179,2]
[402718182,1768833041312,-696.18780762,0.000179,2]
[402718183,1768833041320,-205.43779206,0.000179,2]
[402718184,1768833041330,-1073.81137865,0.000179,2]
[402718185,1768833041339,-262.16490418,0.000179,2]
[402718186,1768833041348,-195.38414496,0.000179,3]
[402718187,1768833041357,-807.19864936,0.000179,2]
[402718188,1768833041367,-2838.26928247,0.000179,2]
[402718189,1768833041377,-150.0,0.00017918,2]
[402718190,1768833041387,-218.0,0.00017931,2]
[402718191,1768833041397,-500.0,0.00017944,2]
[402718192,1768833041407,-500.0,0.00017944,2]
[402718193,1768833041417,-157.1948729,0.00017944,2]
[402718194,1768833041427,-483.0,0.00017944,2]
[402718195,1768833041437,-5800.0,0.00017961,2]
[402718196,1768833041446,-1000.0,0.00017963,2]
[402718197,1768833041455,-5800.0,0.0001797,2]
[402718198,1768833041465,-1000.0,0.00017972,2]
[402718199,1768833041474,-150.0,0.00017972,2]
[402718200,1768833041484,-500.0,0.00017973,2]
[402718201,1768833041493,-500.0,0.00017973,2]
[402718202,1768833041503,-500.0,0.00017973,2]
[402718203,1768833041512,-150.0,0.00017973,2]
[402718204,1768833041522,-150.0,0.00017973,2]
[402718205,1768833041531,-5800.0,0.00017978,2]
[402718206,1768833041541,-1000.0,0.00017981,2]
[402718207,1768833041550,-5800.0,0.00017987,2]
[402718208,1768833041560,-216.52854662,0.0001799,2]
[402718209,1768833041569,-1000.0,0.00017994,2]
[402718210,1768833041579,-5800.0,0.00017995,2]
[402718211,1768833041589,-151.0,0.00017997,2]
[402718212,1768833041598,-151.0,0.00017997,2]
[402718213,1768833041607,-500.0,0.00017999,2]
[402718214,1768833041617,-500.0,0.00017999,2]
[402718215,1768833041627,-483.0,0.00017999,2]
[402718216,1768833041638,-500.0,0.00017999,2]
[402718217,1768833041647,-300.0,0.00017999,2]
[402718218,1768833041656,-666.0,0.00017999,2]
[402718219,1768833041666,-300.0,0.00017999,2]
[402718220,1768833041675,-500.0,0.00017999,2]
[402718221,1768833041684,-500.0,0.00017999,2]
[402718222,1768833041694,-219.66549714,0.00017999,2]
[402718223,1768833041703,-500.0,0.00017999,2]
[402718224,1768833041712,-500.0,0.00017999,2]
[402718225,1768833041722,-500.0,0.00017999,2]
[402718226,1768833041732,-11791.74278883,0.00017999,2]
[402718227,1768833041745,-13671.12709858,0.00017999,2]
[402718228,1768833041755,-500.0,0.00017999,2]
[402718229,1768833041765,-589.03869133,0.00017999,2]
[402718230,1768833041774,-3853.0,0.00018,2]
[402718231,1768833041784,-608231.40537579,0.00018,2]
[402718232,1768833041793,-500.0,0.00018,2]
[402718233,1768833041803,-150.0,0.00018,2]
[402718234,1768833041814,-213.0,0.00018,2]
[402718235,1768833041823,-200.0,0.00018,2]
[402718236,1768833041834,-200.0,0.00018,2]
[402718237,1768833041846,-989.88,0.00018,7]
[402718238,1768833041863,-171.292,0.00018,2]
[402718239,1768833041873,-150.381,0.00018,2]
[402718240,1768833041882,-150.0,0.00018,2]
[402718241,1768833041893,-297.611,0.00018,2]
[402718242,1768833041903,-150.193,0.00018,2]
[402718243,1768833041913,-150.0,0.00018,2]
[402718244,1768833041924,-150.0,0.00018,2]
[402718245,1768833041934,-150.044,0.00018,2]
[402718246,1768833041944,-150.0,0.00018,2]
[402718247,1768833041955,-150.0,0.00018,2]
[402718248,1768833041965,-6754.64589002,0.00018,2]
[402718249,1768833041975,-150.0,0.00018,2]
[402718250,1768833041987,-888.19576499,0.00018,2]
[402718251,1768833041997,-150.0,0.00018,2]
[402718252,1768833042006,-1416.57077004,0.00018,2]
[402718253,1768833042017,-242.58481919,0.00018,2]
[402718254,1768833042028,-1000.0,0.00018,2]
[402718255,1768833042038,-1000.0,0.00018,2]
[402718256,1768833042047,-1000.0,0.00018,2]
[402718257,1768833042056,-1000.0,0.00018,2]
[402718258,1768833042066,-1000.0,0.00018,2]
[402718259,1768833042075,-1000.0,0.00018,2]
[402718260,1768833042083,-1000.0,0.00018,2]
[402718261,1768833042093,-1000.0,0.00018,2]
[402718262,1768833042102,-1000.0,0.00018,2]
[402718263,1768833042111,-1000.0,0.00018,2]
[402718264,1768833042120,-1000.0,0.00018,2]
[402718265,1768833042129,-1000.0,0.00018,2]
[402718266,1768833042139,-185.24,0.00018,2]
[402718267,1768833042148,-151.0,0.00018,2]
[402718268,1768833042158,-1264.0,0.00018,2]
[402718269,1768833042168,-1264.0,0.00018,2]
[402718270,1768833042177,-200.0,0.00018,2]
[402718271,1768833042187,-351.0,0.00018,2]
[402718272,1768833042196,-1268.0,0.00018,2]
[402718273,1768833042206,-200.0,0.00018,2]
[402718274,1768833042216,-158.0,0.00018,2]
[402718275,1768833042225,-1940665.89571468,0.00018,2]
[402718276,1768833042662,-306.23050185,0.00018,2]
[402718277,1768833043206,-3997.98591665,0.00018,2]
[402718278,1768833043226,-2418.0,0.00018,2]
[402718279,1768833043297,-33841.96497514,0.00018,2]
[402718280,1768833043309,-9571.77246531,0.00018,2]
[402718281,1768833043336,-4133.84343981,0.00018,2]
[402718282,1768833043348,-27336.69674415,0.00018,2]
[402718283,1768833043359,-4220729.19725615,0.00018,2]
[402718284,1768833043421,-572.30843681,0.00018,2]
[402718289,1768833045051,-151.0,0.00016054,2]
[402718290,1768833045063,-55123.62457742,0.00018,2]
[402718300,1768833046197,-4826.0,0.000178,2]
[402718301,1768833046207,-340.94893708,0.00018,2]
[402718302,1768833046306,-585197.67178728,0.00018,2]
[402718303,1768833046479,-1475.90934462,0.00018,2]
[402718309,1768833053549,1000000.0,0.00015151,2]
[402718320,1768833065195,264.26,0.00013979,2]
[402718321,1768833068402,1000.0,0.00015151,2]
[402718322,1768833080681,3054.4943,0.00015151,2]
[402718324,1768833082154,457.21586222,0.00027,120]
[402718329,1768833086814,2500.0,0.00015151,2]
[402718341,1768833168565,24130.7669,0.00015151,2]
[402718342,1768833182842,757388.70546395,0.00015151,2]
[402718360,1768833338955,-270.37340776,0.0001515,2]
[402718363,1768833431805,6843.23500066,0.00015051,2]
[402718365,1768833504677,22150.62,0.00012122,2]
[402718366,1768833593196,4165.95,0.00014881,2]
[402718367,1768833621723,-1200.0,0.00015149,2]
[402718368,1768833621754,-276.0,0.00015149,2]
[402718369,1768833621786,-195.0,0.00015149,2]
[402718370,1768833621817,-500.0,0.0001515,2]
[402718371,1768833621847,-345.20820261,0.0001515,2]
[402718372,1768833621878,-235.2475728,0.0001515,2]
[402718373,1768833621914,-500.0,0.0001515,2]
[402718374,1768833621951,-314.59765425,0.0001515,2]
[402718375,1768833621980,-250.0,0.0001515,2]
[402718376,1768833622008,-341.0058,0.0001515,2]
[402718377,1768833622211,-1685.89154068,0.00015151,2]
[402718378,1768833630551,-10000.01,0.00015151,2]
[402718380,1768833684825,1997.7563,0.00015051,2]
[402718381,1768833694670,-300.0,0.0001515,2]
[402718382,1768833694702,-300.0,0.0001515,2]
[402718383,1768833694784,-8800.01,0.00015151,2]
[402718384,1768833700588,-10000.01,0.00015151,2]
[402718385,1768833702682,166.66,0.00014359,2]
[402718386,1768833702894,166.66,0.00014661,2]
[402718387,1768833703111,166.66,0.00014963,2]
[402718388,1768833757095,500.0,0.00014934,2]
[402718389,1768833760687,500.0,0.0001505,2]
[402718390,1768833817952,3567.14,0.000149,2]
[402718391,1768833859531,1600.0,0.00014946,2]
[402718396,1768833910876,500.0,0.00015051,2]
[402718399,1768833942171,7114.60067194,0.00015051,2]
[402718413,1768834027819,-175.9,0.0001515,2]
[402718414,1768834027849,-1200.0,0.0001515,2]
[402718415,1768834027878,-300.0,0.0001515,2]
[402718416,1768834027907,-250.0,0.0001515,2]
[402718417,1768834027937,-328.54068909,0.0001515,2]
[402718418,1768834028036,-5491.12862182,0.00015151,2]
[402718423,1768834033460,-10000.01,0.00015151,2]
[402718433,1768834067140,-500.0,0.00015142,2]
[402718434,1768834067176,-9000.01,0.00015151,2]
[402718435,1768834067588,-10000.01,0.00015151,2]
[402718436,1768834067925,-10000.01,0.00015151,2]
[402718437,1768834068274,-10000.01,0.00015151,2]
[402718438,1768834068514,-10000.01,0.00015151,2]
[402718439,1768834068731,-10000.01,0.00015151,2]
[402718440,1768834069052,-10000.01,0.00015151,2]
[402718441,1768834069581,-10000.01,0.00015151,2]
[402718442,1768834069849,-10000.01,0.00015151,2]
[402718443,1768834076372,-10000.01,0.00015151,2]
[402718444,1768834076480,-10000.01,0.00015151,2]
[402718445,1768834076587,-10000.01,0.00015151,2]
[402718446,1768834076775,-10000.01,0.00015151,2]
[402718447,1768834076916,-10000.01,0.00015151,2]
[402718448,1768834077009,-10000.01,0.00015151,2]
[402718449,1768834077139,-10000.01,0.00015151,2]
[402718450,1768834077254,-10000.01,0.00015151,2]
[402718451,1768834077351,-10000.01,0.00015151,2]
[402718460,1768834115093,2004.9914,0.00015051,2]
[402718461,1768834125691,174.0,0.000273,120]
[402718462,1768834133920,105252.04,0.00014773,2]
[402718463,1768834140052,-10000.01,0.00015151,2]
[402718464,1768834140382,-2365.96562645,0.00015151,2]
[402718465,1768834140409,-5268.0787471,0.00015151,2]
[402718466,1768834140516,-1000.0,0.00015151,2]
[402718467,1768834152235,4000.0,0.000273,120]
[402718468,1768834159376,-282.94,0.00015211,2]
[402718474,1768834172657,-199.63,0.0001524,2]
[402718478,1768834188042,-300.0,0.00015249,2]
[402718480,1768834197942,9400.01,0.0001473,2]
[402718481,1768834197966,10000.01,0.0001473,2]
[402718482,1768834197989,10000.01,0.0001473,2]
[402718483,1768834198011,10000.01,0.0001473,2]
[402718484,1768834198033,702.28,0.0001473,2]
[402718485,1768834201339,1200.0,0.00015249,2]
[402718486,1768834202956,-500.0,0.0001525,2]
[402718487,1768834202989,-589.03869133,0.0001525,2]
[402718488,1768834203021,-500.0,0.0001525,2]
[402718489,1768834203412,-500.0,0.0001525,2]
[402718490,1768834203443,-500.0,0.0001525,2]
[402718491,1768834203472,-485.15972299,0.0001525,2]
[402718492,1768834203502,-500.0,0.0001525,2]
[402718493,1768834203531,-500.0,0.0001525,2]
[402718494,1768834203560,-500.0,0.0001525,2]
[402718495,1768834203593,-351.61317136,0.0001525,2]
[402718496,1768834203711,-148.38682864,0.0001525,2]
[402718497,1768834203742,-500.0,0.0001525,2]
[402718498,1768834203772,-500.0,0.0001525,2]
[402718499,1768834203803,-500.0,0.0001525,2]
[402718500,1768834203837,-500.0,0.0001525,2]
[402718501,1768834203868,-500.0,0.0001525,2]
[402718502,1768834203899,-500.0,0.0001525,2]
[402718503,1768834203929,-500.0,0.0001525,2]
[402718504,1768834203960,-500.0,0.0001525,2]
[402718505,1768834203990,-500.0,0.0001525,2]
[402718506,1768834204020,-201.37843499,0.0001525,2]
[402718507,1768834204106,-300.47947274,0.0001525,2]
[402718508,1768834204136,-500.0,0.0001525,2]
[402718509,1768834204166,-500.0,0.0001525,2]
[402718510,1768834204195,-507.55985946,0.0001525,2]
[402718511,1768834204235,-500.0,0.0001525,2]
[402718512,1768834204268,-500.0,0.0001525,2]
[402718515,1768834209529,500.0,0.00015051,2]
[402718517,1768834229592,10000.01,0.0001515,2]
[402718518,1768834229623,10000.01,0.0001515,2]
[402718519,1768834229655,10000.01,0.0001515,2]
[402718520,1768834229685,10000.01,0.0001515,2]
[402718521,1768834229714,10000.01,0.0001515,2]
[402718522,1768834229744,3883.9313356,0.0001515,2]
[402718523,1768834229775,10000.01,0.0001515,2]
[402718524,1768834229806,10000.01,0.0001515,2]
[402718525,1768834229836,10000.01,0.0001515,2]
[402718526,1768834229867,10000.01,0.0001515,2]
[402718527,1768834229898,10000.01,0.0001515,2]
[402718528,1768834229930,10000.01,0.0001515,2]
[402718529,1768834229960,10000.01,0.0001515,2]
[402718530,1768834229990,10000.01,0.0001515,2]
[402718531,1768834230020,10000.01,0.0001515,2]
[402718536,1768834232276,-68536.0199644,0.0001515,2]
[402718537,1768834232285,-166.66,0.00015266,2]
[402718538,1768834232294,-500.0,0.00015348,2]
[402718539,1768834232303,-1002.10968086,0.00015367,2]
[402718540,1768834232312,-499.99,0.00015368,2]
[402718541,1768834232321,-150.99,0.00015368,2]
[402718542,1768834232331,-3793.84429153,0.00015368,2]
[402718543,1768834232343,-6206.14570847,0.00015368,2]
[402718544,1768834232353,-908.47,0.00015368,2]
[402718545,1768834232363,-9999.99,0.00015368,2]
[402718546,1768834232373,-374.15,0.00015368,2]
[402718547,1768834232384,-150.99,0.00015368,2]
[402718548,1768834232393,-9999.99,0.00015368,2]
[402718549,1768834232402,-7839.13040653,0.00015368,2]
[402718550,1768834232416,-1630.87669183,0.00015368,2]
[402718551,1768834232427,-5175.48290164,0.00015368,2]
[402718552,1768834232436,-5057.19462183,0.00015368,2]
[402718553,1768834232452,-356.52330817,0.00015368,2]
[402718554,1768834232496,-303.81320292,0.00015368,2]
[402718555,1768834232646,-1397.06953902,0.00015368,2]
[402718556,1768834232656,-264.26,0.00015377,2]
[402718557,1768834232666,-500.0,0.00015425,2]
[402718558,1768834232675,-500.0,0.00015425,2]
[402718559,1768834232686,-524.0,0.00015425,2]
[402718560,1768834232695,-150.0,0.00015425,2]
[402718561,1768834232705,-150.0,0.00015425,2]
[402718562,1768834232714,-150.0,0.00015425,2]
[402718563,1768834232723,-500.0,0.0001548,2]
[402718564,1768834232732,-500.0,0.0001548,2]
[402718565,1768834232742,-524.0,0.0001548,2]
[402718566,1768834232751,-150.0,0.0001548,2]
[402718567,1768834232760,-150.0,0.0001548,2]
[402718568,1768834232770,-150.0,0.0001548,2]
[402718569,1768834232780,-958.2,0.00015489,2]
[402718570,1768834232790,-164.04970541,0.00015497,2]
[402718571,1768834232800,-500.0,0.00015535,2]
[402718572,1768834232810,-500.0,0.00015535,2]
[402718573,1768834232825,-524.0,0.00015535,2]
[402718574,1768834232835,-200.0,0.00015535,2]
[402718575,1768834232844,-150.0,0.00015535,2]
[402718576,1768834232854,-200.0,0.00015535,2]
[402718577,1768834232863,-166.66,0.00015568,2]
[402718578,1768834232872,-500.0,0.00015589,2]
[402718579,1768834232881,-500.0,0.00015589,2]
[402718580,1768834232891,-524.0,0.00015589,2]
[402718581,1768834232900,-235.75825089,0.00015589,2]
[402718582,1768834232909,-481.0,0.00015617,2]
[402718583,1768834232919,-843.0,0.0001564,2]
[402718584,1768834232928,-500.0,0.00015644,2]
[402718585,1768834232938,-500.0,0.00015644,2]
[402718586,1768834232947,-524.0,0.00015644,2]
[402718587,1768834232957,-182.0,0.00015648,2]
[402718588,1768834232966,-591.64574183,0.0001567,2]
[402718589,1768834232979,-164.67330096,0.0001567,2]
[402718590,1768834232988,-1440.0,0.00015671,2]
[402718591,1768834232997,-211.0,0.0001568,2]
[402718592,1768834233007,-7114.60067194,0.00015684,2]
[402718593,1768834233016,-500.0,0.00015699,2]
[402718594,1768834233025,-500.0,0.00015699,2]
[402718595,1768834233035,-524.0,0.00015699,2]
[402718596,1768834233044,-1346.0,0.00015703,2]
[402718597,1768834233054,-314.0,0.00015711,2]
[402718598,1768834233063,-151.0,0.00015721,2]
[402718599,1768834233073,-151.0,0.00015721,2]
[402718600,1768834233083,-500.0,0.00015725,2]
[402718601,1768834233092,-151.0,0.00015725,2]
[402718602,1768834233102,-151.0,0.00015725,2]
[402718603,1768834233112,-338.0,0.00015742,2]
[402718604,1768834233122,-500.0,0.00015754,2]
[402718605,1768834233132,-500.0,0.00015754,2]
[402718606,1768834233142,-524.0,0.00015754,2]
[402718607,1768834233153,-500.0,0.00015771,2]
[402718608,1768834233162,-500.0,0.00015771,2]
[402718609,1768834233172,-500.0,0.00015771,2]
[402718610,1768834233181,-500.0,0.00015771,2]
[402718611,1768834233191,-500.0,0.00015771,2]
[402718612,1768834233200,-500.0,0.00015771,2]
[402718613,1768834233210,-357.0,0.00015773,2]
[402718614,1768834233220,-8381.90190571,0.000158,2]
[402718615,1768834233231,-422.0,0.00015804,2]
[402718616,1768834233241,-500.0,0.00015809,2]
[402718617,1768834233250,-500.0,0.00015809,2]
[402718618,1768834233259,-524.0,0.00015809,2]
[402718619,1768834233269,-285.0,0.00015835,2]
[402718620,1768834233279,-500.0,0.00015863,2]
[402718621,1768834233288,-500.0,0.00015863,2]
[402718622,1768834233298,-524.0,0.00015863,2]
[402718623,1768834233307,-162.0,0.00015867,2]
[402718624,1768834233316,-166.66,0.0001587,2]
[402718625,1768834233326,-494.0,0.00015898,2]
[402718626,1768834233340,-558.26785417,0.00015918,2]
[402718627,1768834233350,-500.0,0.00015918,2]
[402718628,1768834233359,-524.0,0.00015918,2]
[402718629,1768834233368,-492.0,0.00015929,2]
[402718630,1768834233378,-500.0,0.00015942,2]